[Event "ENG-ch Women 2019"]
[Site "Hull"]
[Date "2019.08.30"]
[Round "1.8"]
[White "Zhu, Yaoyao"]
[Black "Arora, Tashika"]
[Result "1-0"]
[ECO "A05"]
[WhiteElo "1842"]
[BlackElo "1447"]
[Annotator "NA RC"]
[PlyCount "115"]
[EventDate "2019.08.30"]
[EventType "swiss"]
[EventCountry "ENG"]
[SourceTitle "playchess.com"]
[Source "ChessBase"]
[SourceQuality "1"]
[TimeControl "5400+30"]

1. e4 {[%emt 0:00:00]} c5 {[%emt 0:00:00]} 2. Nf3 {[%emt 0:00:00]} d6 {[%emt 0:00:00]} 3. d3 {[%emt 0:04:54]} Nc6 {[%emt 0:00:47]} 4. g3 {[%emt 0:00:06]} g6 {[%emt 0:00:17]} 5. Bg2 {[%emt 0:00:11]} Bg7 {[%emt 0:00:12]} 6. O-O {[%emt 0:00:07]} Nf6 {[%emt 0:00:34]} 7. Re1 {[%emt 0:00:47]} O-O {[%emt 0:00:30]} 8. c3 {[%emt 0:00:15]} e6 {[%emt 0:01:22] A05: Réti Opening: 1 Nf3 Nf6} (8... e5 9. a3 h6 10. b4 b6 11. b5 Ne7 12. a4 a6 13. Na3 Be6 14. Bb2 Nd7 15. bxa6 Rxa6 16. Nb5 d5 17. exd5 Nxd5 {0-1 (62) Saric,I (2664)-Zherebukh,Y (2636) chess.com INT 2018}) 9. d4 {[%emt 0:08:52]} cxd4 {[%emt 0:00:23]} 10. cxd4 {[%emt 0:00:05]} d5 {[%emt 0:01:54]} 11. e5 {[%emt 0:01:41]} Nd7 {[%emt 0:00:42]} 12. Nc3 {[%emt 0:06:52]} a6 {[%emt 0:01:08]} 13. Bh3 $146 {[%emt 0:02:36]} ({Predecessor:} 13. h4 f6 14. Bf4 fxe5 15. dxe5 {1-0 (39) Kotepalli,S (1944)-Aasha,C (1772) Chennai 2016}) 13... Nb6 {[%emt 0:02:53]} 14. Rb1 {[%emt 0:14:15]} f6 {[%emt 0:05:47]} 15. Bf4 {[%emt 0:09:21]} f5 {[%emt 0:05:16]} 16. Bf1 {[%emt 0:03:29]} Re8 {[%emt 0:02:42]} 17. Qc1 {[%emt 0:03:16]} Bf8 {[%emt 0:08:08]} 18. h4 {[%emt 0:02:40]} h5 {[%emt 0:05:18]} (18... Bd7 $16 {was called for.}) 19. Qd1 {[%emt 0:05:32]} Bd7 {[%emt 0:02:38]} 20. Ng5 {[%emt 0:00:50]} Rc8 {[%emt 0:03:46]} 21. a3 {[%emt 0:04:18]} Na5 {[%emt 0:01:19]} 22. Qf3 {[%emt 0:01:19]} Nac4 {[%emt 0:02:27]} 23. Bc1 {[%emt 0:01:22]} Qc7 {[%emt 0:02:08]} 24. Ne2 {[%emt 0:05:46]} Be7 {[%emt 0:08:45]} 25. Nf4 {[%emt 0:03:00]} Bxg5 {[%emt 0:11:25]} 26. hxg5 {[%emt 0:00:06]} Kg7 {[%emt 0:00:42]} 27. Bd3 {[%emt 0:05:00]} Rh8 {[%emt 0:01:19]} 28. Ng2 {[%emt 0:00:30]} (28. b3 $18 Na5 29. Qe3) 28... Na5 {[%emt 0:03:13]} 29. Bd2 {[%emt 0:01:53]} (29. b3 $16) 29... Nb3 {[%emt 0:01:21]} 30. Bc3 {[%emt 0:04:03]} Na4 $1 {[%emt 0:01:02]} 31. Bb4 {[%emt 0:01:28]} Nxd4 {[%emt 0:00:56]} 32. Qf4 {[%emt 0:00:28]} Nb3 {[%emt 0:01:35]} 33. Be7 {[%emt 0:01:05]} Rhe8 {[%emt 0:00:47]} 34. Bf6+ {[%emt 0:01:40]} Kh7 {[%emt 0:00:12]} (34... Kf8 $142 35. Nh4 Kf7) 35. Qh4 {[%emt 0:00:29]} Nac5 $2 {[%emt 0:01:44]} (35... Nd2 36. Be2 Qc4) 36. Be2 {[%emt 0:01:32]} Ne4 {[%emt 0:01:15]} (36... Rh8 $18 37. Bxh5 Kg8 38. Bxh8 gxh5) 37. Bxh5 {[%emt 0:02:54]} Nxf6 {[%emt 0:01:30]} 38. gxf6 {[%emt 0:00:30]} Nc5 {[%emt 0:03:23]} 39. Nf4 {[%emt 0:00:31]} Kg8 {[%emt 0:02:40]} 40. Bxg6 {[%emt 0:00:17]} Bb5 {[%emt 0:00:53]} 41. f7+ {[%emt 0:00:10]} Kf8 {[%emt 0:00:15]} 42. Qh8+ {[%emt 0:00:30]} Ke7 {[%emt 0:00:07]} 43. Qf6+ {[%emt 0:00:16]} Kd7 {[%emt 0:00:24]} 44. fxe8=Q+ {[%emt 0:00:04]} Rxe8 {[%emt 0:00:00]} 45. Bxe8+ {[%emt 0:00:19]} Kxe8 {[%emt 0:00:00]} 46. Nxe6 {[%emt 0:00:17]} Nxe6 {[%emt 0:00:19]} 47. Qxe6+ {[%emt 0:00:06]} Kd8 {[%emt 0:00:10]} 48. Qxd5+ {[%emt 0:00:23]} Ke8 {[%emt 0:00:16]} 49. Qe6+ {[%emt 0:00:17]} Kf8 {[%emt 0:00:31]} 50. Qd6+ {[%emt 0:00:12]} Qxd6 {[%emt 0:00:07]} 51. exd6 {[%emt 0:00:03]} Bd7 {[%emt 0:00:30]} 52. Rbc1 {[%emt 0:00:23]} Bc6 {[%emt 0:01:56]} 53. Rxc6 {[%emt 0:00:07]} bxc6 {[%emt 0:00:04]} 54. d7 {[%emt 0:00:04]} Kf7 {[%emt 0:00:20]} 55. d8=Q {[%emt 0:00:10]} Kg7 {[%emt 0:00:17]} 56. Re6 {[%emt 0:00:07]} Kf7 {[%emt 0:00:08]} 57. Qd7+ {[%emt 0:00:09]} Kf8 {[%emt 0:00:05]} 58. Re8# {[%emt 0:00:05]} 1-0

[Event "ENG-ch Women 2019"]
[Site "Hull"]
[Date "2019.08.30"]
[Round "1.9"]
[White "Chaban, Roxolana"]
[Black "Hutchinson, Joanne"]
[Result "0-1"]
[ECO "B01"]
[WhiteElo "1281"]
[BlackElo "1802"]
[Annotator "NA RC"]
[PlyCount "72"]
[EventDate "2019.08.30"]
[EventType "swiss"]
[EventCountry "ENG"]
[SourceTitle "playchess.com"]
[Source "ChessBase"]
[SourceQuality "1"]
[TimeControl "5400+30"]

1. e4 {[%emt 0:00:00]} d5 {[%emt 0:00:00]} 2. exd5 {[%emt 0:00:00]} Qxd5 {[%emt 0:00:00]} 3. Nc3 {[%emt 0:00:00]} Qa5 {[%emt 0:00:00]} 4. d4 {[%emt 0:02:44]} Nf6 {[%emt 0:00:06]} 5. Bd2 {[%emt 0:02:53]} Qb6 {[%emt 0:00:59]} 6. Nf3 {[%emt 0:06:32]} Bf5 {[%emt 0:00:34] B01: Scandinavian Defence} (6... Bg4 7. h3 Bxf3 8. Qxf3 c6 9. O-O-O e6 10. Kb1 Nbd7 11. g4 Bb4 12. g5 Bxc3 13. Bxc3 Nd5 14. Be1 O-O 15. c4 Ne7 16. Bd3 c5 17. Bc3 Nc6 18. dxc5 Nxc5 19. Bxh7+ {1-0 (19) Fressinet,L (2667)-Munoz Pantoja,M (2494) Barcelona 2017}) 7. Bc4 {[%emt 0:07:59]} e6 {[%emt 0:01:29]} 8. O-O {[%emt 0:16:35]} c6 {[%emt 0:00:07]} 9. Bb3 {[%emt 0:08:44]} Bd6 {[%emt 0:00:19]} 10. Re1 {[%emt 0:06:15]} O-O {[%emt 0:00:32]} 11. h3 {[%emt 0:07:27]} Nbd7 {[%emt 0:00:35]} 12. Be3 {[%emt 0:03:58]} Qc7 {[%emt 0:01:24]} 13. Qe2 {[%emt 0:04:16]} Rfe8 {[%emt 0:02:21]} 14. Rad1 {[%emt 0:03:54]} Rad8 $146 {[%emt 0:11:26]} ({Predecessor:} 14... b5 15. a3 Nb6 {1-0 (75) Malekhina,A-Tairova,E Oropesa del Mar 2001}) 15. Nh4 {[%emt 0:06:39]} Be4 {[%emt 0:05:52]} 16. Nxe4 {[%emt 0:03:42]} Nxe4 {[%emt 0:00:34]} 17. Qf3 {[%emt 0:03:03]} Nef6 $1 {[%emt 0:01:36]} 18. c4 {[%emt 0:03:26]} c5 {[%emt 0:12:43]} 19. dxc5 {[%emt 0:02:58]} Nxc5 {[%emt 0:01:42]} 20. Bxc5 {[%emt 0:02:57]} Bxc5 {[%emt 0:00:11]} 21. Kh1 {[%emt 0:01:15]} Qb6 {[%emt 0:02:38]} 22. Rxd8 {[%emt 0:01:59]} Rxd8 {[%emt 0:00:11]} 23. Re2 {[%emt 0:00:31]} h6 {[%emt 0:01:39]} 24. g3 {[%emt 0:00:49]} Nh7 {[%emt 0:01:10]} 25. g4 $2 {[%emt 0:01:57]} ({White should play} 25. Bc2 $15) 25... Ng5 {[%emt 0:00:14]} 26. Qg3 {[%emt 0:00:49]} Qc6+ {[%emt 0:04:42]} 27. Kg1 {[%emt 0:00:40]} a5 {[%emt 0:09:05]} 28. a4 {[%emt 0:00:26]} Bd6 {[%emt 0:02:02]} 29. Qg2 {[%emt 0:01:06]} Qb6 {[%emt 0:00:02]} 30. Bc2 {[%emt 0:00:33]} Kh8 $17 {[%emt 0:03:57]} (30... Qb4 $19 31. Nf3 Qxc4) 31. b3 {[%emt 0:00:18]} Qd4 {[%emt 0:00:30]} 32. Kh1 {[%emt 0:00:45]} Qa1+ {[%emt 0:01:34]} 33. Qg1 {[%emt 0:00:22]} Qxg1+ {[%emt 0:00:41]} 34. Kxg1 {[%emt 0:00:05]} Nxh3+ {[%emt 0:00:15]} 35. Kg2 {[%emt 0:00:12]} Nf4+ {[%emt 0:00:08]} 36. Kf1 {[%emt 0:00:13]} Nxe2 {[%emt 0:00:07]} 0-1

[Event "ENG-ch Women 2019"]
[Site "Hull"]
[Date "2019.08.30"]
[Round "1.10"]
[White "Gamal, Alaa"]
[Black "Pettit, Felicity Ol"]
[Result "1-0"]
[ECO "D00"]
[WhiteElo "1762"]
[BlackElo "1233"]
[Annotator "NA RC"]
[PlyCount "61"]
[EventDate "2019.08.30"]
[EventType "swiss"]
[EventCountry "ENG"]
[SourceTitle "playchess.com"]
[Source "ChessBase"]
[SourceQuality "1"]
[TimeControl "5400+30"]

1. d4 {[%emt 0:00:00]} d5 {[%emt 0:00:00]} 2. Nf3 {[%emt 0:00:00]} Nf6 {[%emt 0:00:07]} 3. Bg5 {[%emt 0:01:24]} g6 {[%emt 0:03:14]} 4. Nc3 {[%emt 0:06:51]} Bg7 {[%emt 0:06:11]} 5. e3 {[%emt 0:01:51]} O-O {[%emt 0:05:10]} 6. Bd3 {[%emt 0:00:16]} c6 {[%emt 0:03:24]} 7. Qe2 {[%emt 0:00:10]} Re8 {[%emt 0:02:19]} 8. h3 {[%emt 0:00:53]} Nbd7 {[%emt 0:02:28]} 9. Ne5 {[%emt 0:11:40]} Qc7 {[%emt 0:04:09]} 10. Bf4 {[%emt 0:01:28]} Nxe5 {[%emt 0:04:04]} 11. Bxe5 {[%emt 0:03:22]} Qd8 {[%emt 0:04:36]} 12. O-O-O {[%emt 0:00:28]} Bd7 {[%emt 0:03:35]} 13. Rdg1 {[%emt 0:00:19]} b5 {[%emt 0:00:29]} 14. g4 {[%emt 0:01:42]} Qb6 {[%emt 0:02:16]} 15. h4 {[%emt 0:02:18]} a5 {[%emt 0:02:18]} 16. h5 {[%emt 0:00:35]} a4 {[%emt 0:02:48]} 17. hxg6 {[%emt 0:00:48]} hxg6 {[%emt 0:07:25]} 18. g5 {[%emt 0:02:17]} Nh5 {[%emt 0:02:48]} 19. Rxh5 {[%emt 0:00:23]} gxh5 {[%emt 0:00:27]} 20. Bxg7 {[%emt 0:01:14]} Kxg7 {[%emt 0:01:51]} 21. Qxh5 {[%emt 0:00:02]} Rh8 {[%emt 0:02:05]} 22. Qf3 {[%emt 0:00:52]} Qc7 {[%emt 0:04:49]} 23. Ne2 {[%emt 0:01:43]} Qh2 {[%emt 0:04:10]} 24. g6 {[%emt 0:05:51]} f6 {[%emt 0:01:01]} 25. Bf5 {[%emt 0:01:30]} Bxf5 {[%emt 0:01:53]} 26. Qxf5 {[%emt 0:00:05]} Qh5 {[%emt 0:00:39]} 27. Qe6 {[%emt 0:08:04]} Qxe2 {[%emt 0:04:05]} 28. Qf7+ {[%emt 0:00:01]} Kh6 {[%emt 0:00:16]} 29. g7 {[%emt 0:00:06]} Qh5 {[%emt 0:03:52]} 30. gxh8=Q+ {[%emt 0:00:06]} Rxh8 {[%emt 0:00:42]} 31. Qg7# {[%emt 0:01:15]} 1-0

[Event "ENG-ch Women 2019"]
[Site "Hull"]
[Date "2019.08.30"]
[Round "1.11"]
[White "Cakova, Monika"]
[Black "Headlong, Fenella"]
[Result "0-1"]
[ECO "A01"]
[WhiteElo "1150"]
[BlackElo "1761"]
[Annotator "NA RC"]
[PlyCount "60"]
[EventDate "2019.08.30"]
[EventType "swiss"]
[EventCountry "ENG"]
[SourceTitle "playchess.com"]
[Source "ChessBase"]
[SourceQuality "1"]
[TimeControl "5400+30"]

1. e3 {[%emt 0:00:00]} e5 {[%emt 0:00:18]} 2. b3 {[%emt 0:00:00]} d5 {[%emt 0:00:53]} 3. Bb2 {[%emt 0:00:19]} Nc6 {[%emt 0:01:35]} 4. c4 {[%emt 0:01:07]} d4 {[%emt 0:02:58]} 5. Nf3 {[%emt 0:03:02]} Bg4 {[%emt 0:03:33]} 6. Be2 {[%emt 0:02:04]} d3 {[%emt 0:05:40]} 7. e4 {[%emt 0:13:15]} dxe2 {[%emt 0:01:10]} 8. Qxe2 {[%emt 0:00:25]} Nb4 {[%emt 0:10:50]} 9. d3 {[%emt 0:01:37]} Nxd3+ {[%emt 0:00:28]} 10. Kf1 {[%emt 0:01:07]} Nxb2 {[%emt 0:05:24]} 11. Qxb2 {[%emt 0:08:36]} Qd3+ {[%emt 0:00:39]} 12. Qe2 {[%emt 0:06:10]} O-O-O {[%emt 0:02:29]} 13. Qxd3 {[%emt 0:08:51]} Rxd3 {[%emt 0:00:06]} 14. Ne1 {[%emt 0:03:07]} Rd1 {[%emt 0:00:38]} 15. f3 {[%emt 0:00:50]} Bb4 {[%emt 0:01:46]} 16. Ke2 {[%emt 0:02:01]} Rxe1+ {[%emt 0:01:19]} 17. Rxe1 {[%emt 0:00:34]} Bxe1 {[%emt 0:00:00]} 18. Kxe1 {[%emt 0:00:22]} Be6 {[%emt 0:00:00]} 19. Nc3 {[%emt 0:00:27]} Ne7 {[%emt 0:01:44]} 20. Nb5 {[%emt 0:03:35]} a6 {[%emt 0:01:56]} 21. Na3 {[%emt 0:01:26]} Rd8 {[%emt 0:00:19]} 22. Nc2 {[%emt 0:01:31]} Nc6 {[%emt 0:00:33]} 23. a4 {[%emt 0:02:32]} Na5 {[%emt 0:06:56]} 24. Rb1 {[%emt 0:01:12]} f5 {[%emt 0:05:44]} 25. Ke2 {[%emt 0:03:19]} f4 {[%emt 0:04:14]} 26. Ne1 {[%emt 0:01:33]} Nxb3 {[%emt 0:10:19]} 27. Nd3 {[%emt 0:04:52]} Bxc4 {[%emt 0:00:32]} 28. Rd1 {[%emt 0:00:51]} Bxd3+ {[%emt 0:00:22]} 29. Rxd3 {[%emt 0:00:10]} Nc1+ {[%emt 0:00:01]} 30. Kd2 {[%emt 0:00:43]} Nxd3 {[%emt 0:00:20]} 0-1

[Event "ENG-ch Women 2019"]
[Site "Hull"]
[Date "2019.08.30"]
[Round "1.12"]
[White "Sheikh, Anum"]
[Black "Mackenzie, Kira"]
[Result "1-0"]
[ECO "C45"]
[WhiteElo "1693"]
[BlackElo "1142"]
[Annotator "NA"]
[PlyCount "119"]
[EventDate "2019.08.30"]
[EventType "swiss"]
[EventCountry "ENG"]
[SourceTitle "playchess.com"]
[Source "ChessBase"]
[SourceQuality "1"]
[TimeControl "5400+30"]

1. e4 {[%emt 0:00:00]} e5 {[%emt 0:00:00]} 2. Nf3 {[%emt 0:00:00]} Nc6 {[%emt 0:00:03]} 3. d4 {[%emt 0:00:00]} exd4 {[%emt 0:01:59]} 4. Nxd4 {[%emt 0:00:03]} Bc5 {[%emt 0:00:24]} 5. Be3 {[%emt 0:00:06]} Nxd4 {[%emt 0:02:08]} 6. Bxd4 {[%emt 0:00:08]} Bxd4 {[%emt 0:00:10]} 7. Qxd4 {[%emt 0:00:04]} f6 {[%emt 0:01:29]} 8. Bc4 {[%emt 0:00:30]} Ne7 {[%emt 0:01:48]} 9. Nc3 {[%emt 0:00:13]} c6 {[%emt 0:00:49]} 10. O-O-O {[%emt 0:00:41]} Qb6 {[%emt 0:01:23]} 11. Qd2 {[%emt 0:01:40]} Qc7 {[%emt 0:01:53]} 12. f4 {[%emt 0:01:00]} b5 {[%emt 0:00:35]} 13. Bb3 {[%emt 0:00:50]} Bb7 {[%emt 0:01:51]} 14. e5 {[%emt 0:02:31]} fxe5 {[%emt 0:01:27]} 15. fxe5 {[%emt 0:00:05]} O-O-O {[%emt 0:00:06]} 16. Ne4 {[%emt 0:00:43]} Rhf8 {[%emt 0:03:52]} 17. Nd6+ {[%emt 0:02:05]} Kb8 {[%emt 0:00:11]} 18. Nf7 {[%emt 0:00:12]} Rc8 {[%emt 0:01:31]} 19. Qxd7 {[%emt 0:00:22]} Qxd7 {[%emt 0:00:24]} 20. Rxd7 {[%emt 0:00:06]} Rc7 {[%emt 0:03:08]} 21. Rhd1 {[%emt 0:04:07]} Rxd7 {[%emt 0:00:43]} 22. Rxd7 {[%emt 0:00:08]} Nd5 {[%emt 0:00:33]} 23. Bxd5 {[%emt 0:04:05]} cxd5 {[%emt 0:00:11]} 24. e6 {[%emt 0:00:13]} Re8 {[%emt 0:03:01]} 25. Nd6 {[%emt 0:01:52]} Rxe6 {[%emt 0:01:27]} 26. Rxb7+ {[%emt 0:00:33]} Ka8 {[%emt 0:00:11]} 27. Rd7 {[%emt 0:00:09]} Kb8 {[%emt 0:00:29]} 28. Nxb5 {[%emt 0:00:26]} Ra6 {[%emt 0:01:12]} 29. Rxg7 {[%emt 0:00:32]} Rxa2 {[%emt 0:00:23]} 30. Na3 {[%emt 0:00:09]} Ra1+ {[%emt 0:00:08]} 31. Kd2 {[%emt 0:00:13]} Rf1 {[%emt 0:00:18]} 32. Rxh7 {[%emt 0:01:15]} Rf2+ {[%emt 0:00:22]} 33. Kd3 {[%emt 0:00:21]} Rxg2 {[%emt 0:00:09]} 34. Kd4 {[%emt 0:00:05]} Rd2+ {[%emt 0:01:36]} 35. Kc5 {[%emt 0:00:06]} Kc8 {[%emt 0:01:11]} 36. h4 {[%emt 0:00:06]} d4 {[%emt 0:00:08]} 37. h5 {[%emt 0:00:30]} d3 {[%emt 0:00:20]} 38. cxd3 {[%emt 0:00:06]} Rxd3 {[%emt 0:00:11]} 39. h6 {[%emt 0:00:28]} Rf3 {[%emt 0:00:48]} 40. Rh8+ {[%emt 0:00:14]} Kb7 {[%emt 0:00:17]} 41. h7 {[%emt 0:00:08]} Rf5+ {[%emt 0:00:10]} 42. Kd6 {[%emt 0:00:26]} Rf7 {[%emt 0:00:14]} 43. Rb8+ {[%emt 0:00:12]} Kxb8 {[%emt 0:00:22]} 44. h8=Q+ {[%emt 0:00:06]} Kb7 {[%emt 0:00:25]} 45. Nc4 {[%emt 0:00:19]} Rf1 {[%emt 0:01:13]} 46. Qg7+ {[%emt 0:00:29]} Ka6 {[%emt 0:00:05]} 47. Qg2 {[%emt 0:01:26]} Rf6+ {[%emt 0:00:54]} 48. Ke5 {[%emt 0:00:12]} Rh6 {[%emt 0:00:21]} 49. Nd6 {[%emt 0:00:19]} Rh5+ {[%emt 0:00:41]} 50. Nf5 {[%emt 0:00:11]} Kb5 {[%emt 0:00:25]} 51. Qc2 {[%emt 0:00:26]} Rh3 {[%emt 0:00:33]} 52. Nd4+ {[%emt 0:00:44]} Kb4 {[%emt 0:00:54]} 53. b3 {[%emt 0:00:25]} Rc3 {[%emt 0:00:37]} 54. Nc6+ {[%emt 0:00:13]} Rxc6 {[%emt 0:00:21]} 55. Qxc6 {[%emt 0:00:06]} Kxb3 {[%emt 0:00:04]} 56. Kd4 {[%emt 0:00:07]} Kb2 {[%emt 0:00:18]} 57. Qc3+ {[%emt 0:00:09]} Kb1 {[%emt 0:00:14]} 58. Qb3+ {[%emt 0:00:06]} Ka1 {[%emt 0:00:12]} 59. Kc3 {[%emt 0:00:04]} a5 {[%emt 0:00:39]} 60. Qb2# {[%emt 0:00:41]} 1-0

[Event "ENG-ch Women 2019"]
[Site "Hull"]
[Date "2019.08.31"]
[Round "2.1"]
[White "Toma, Katarzyna"]
[Black "Zhu, Yaoyao"]
[Result "1-0"]
[ECO "C77"]
[WhiteElo "2229"]
[BlackElo "1842"]
[Annotator "ChessBase"]
[PlyCount "61"]
[EventDate "2019.08.30"]
[EventType "swiss"]
[EventCountry "ENG"]
[SourceTitle "playchess.com"]
[Source "ChessBase"]
[SourceQuality "1"]
[TimeControl "5400+30"]

1. e4 {[%emt 0:00:00]} e5 {[%emt 0:00:00]} 2. Nf3 {[%emt 0:00:00]} Nc6 {[%emt 0:00:00]} 3. Bb5 {[%emt 0:00:00]} a6 {[%emt 0:00:00]} 4. Ba4 {[%emt 0:00:00]} Nf6 {[%emt 0:00:00]} 5. Qe2 {[%emt 0:00:00]} b5 {[%emt 0:00:44]} 6. Bb3 {[%emt 0:00:05]} Bc5 {[%emt 0:00:08]} 7. c3 {[%emt 0:00:52]} O-O {[%emt 0:00:13]} 8. O-O {[%emt 0:00:25]} d5 {[%emt 0:10:49]} 9. d3 {[%emt 0:00:42]} dxe4 {[%emt 0:01:57]} 10. dxe4 {[%emt 0:00:06]} Qe7 {[%emt 0:00:19]} 11. Bg5 {[%emt 0:03:52]} h6 {[%emt 0:05:53]} 12. Bh4 {[%emt 0:00:57]} Be6 {[%emt 0:01:35]} 13. Bd5 {[%emt 0:02:12]} Bd7 {[%emt 0:08:34]} 14. Nbd2 {[%emt 0:01:07]} Qd6 {[%emt 0:11:10]} 15. Rfd1 {[%emt 0:02:26]} Nh5 {[%emt 0:12:21]} 16. Nb3 {[%emt 0:02:22]} Nf4 {[%emt 0:06:02]} 17. Qf1 {[%emt 0:00:21]} Be8 {[%emt 0:06:59]} 18. Bxf7+ {[%emt 0:11:22]} Bxf7 {[%emt 0:00:21]} 19. Rxd6 {[%emt 0:00:04]} Bxd6 {[%emt 0:00:06]} 20. Nbd2 {[%emt 0:01:18]} g5 {[%emt 0:07:39]} 21. Bg3 {[%emt 0:00:04]} Be6 {[%emt 0:00:17]} 22. a4 {[%emt 0:01:17]} Rab8 {[%emt 0:08:25]} 23. axb5 {[%emt 0:01:11]} axb5 {[%emt 0:00:05]} 24. Bxf4 {[%emt 0:00:26]} Rxf4 {[%emt 0:00:24]} 25. b4 {[%emt 0:02:31]} Rff8 {[%emt 0:06:18]} 26. Ra6 {[%emt 0:01:01]} Bd7 {[%emt 0:00:36]} 27. Qd3 {[%emt 0:01:43]} Ne7 {[%emt 0:01:10]} 28. Rxd6 {[%emt 0:02:20]} cxd6 {[%emt 0:05:54]} 29. Qxd6 {[%emt 0:00:04]} Ra8 {[%emt 0:00:25]} 30. Qxd7 {[%emt 0:01:07]} Rfd8 {[%emt 0:02:03]} 31. Qxe7 {[%emt 0:01:13] Kf8} 1-0

[Event "ENG-ch Women 2019"]
[Site "Hull"]
[Date "2019.08.31"]
[Round "2.2"]
[White "Hutchinson, Joanne"]
[Black "Longson, Sarah N"]
[Result "0-1"]
[ECO "D00"]
[WhiteElo "1802"]
[BlackElo "2095"]
[Annotator "NA"]
[PlyCount "84"]
[EventDate "2019.08.30"]
[EventType "swiss"]
[EventCountry "ENG"]
[SourceTitle "playchess.com"]
[Source "ChessBase"]
[SourceQuality "1"]
[TimeControl "5400+30"]

1. d4 {[%emt 0:00:00]} d5 {[%emt 0:00:00]} 2. Bf4 {[%emt 0:00:00]} c5 {[%emt 0:00:39]} 3. e3 {[%emt 0:00:00]} Nc6 {[%emt 0:00:18]} 4. c3 {[%emt 0:00:13]} Qb6 {[%emt 0:01:09]} 5. Qb3 {[%emt 0:00:36]} c4 {[%emt 0:00:22]} (5... Nf6 6. Nd2 c4 7. Qc2 Nh5 8. Bg5 h6 9. Bh4 g5 10. Be2 Ng7 11. Bg3 Bf5 12. Qc1 e6 {1-0 (41) Carlsen,M (2832)-So,W (2812) Leuven 2017}) 6. Qc2 {[%emt 0:00:06] D00: 1 d4 d5: Unusual lines} e5 {[%emt 0:00:31]} 7. dxe5 {[%emt 0:02:17]} Bf5 {[%emt 0:00:08]} 8. Qc1 {[%emt 0:02:38]} Nge7 {[%emt 0:00:41]} 9. Nf3 {[%emt 0:00:31]} Ng6 {[%emt 0:00:40]} 10. Bg3 $146 {[%emt 0:01:15]} ({Predecessor:} 10. Be2 Bc5 11. O-O O-O {0-1 (58) Del Puerto,R (2219)-Latorre Lopez Moreira,L (2375) Asuncion 2017}) 10... Bc5 {[%emt 0:00:48]} 11. Be2 {[%emt 0:01:14]} O-O {[%emt 0:01:15]} 12. O-O {[%emt 0:00:10]} Rfe8 {[%emt 0:02:09]} 13. Nd4 {[%emt 0:02:29]} Bxd4 {[%emt 0:00:06]} 14. exd4 {[%emt 0:04:27]} Rad8 {[%emt 0:05:36]} 15. f4 {[%emt 0:04:07]} f6 {[%emt 0:05:13]} 16. Bf2 {[%emt 0:01:26]} Qa5 {[%emt 0:09:15]} 17. g4 {[%emt 0:07:59]} Bxb1 {[%emt 0:01:59]} 18. Rxb1 {[%emt 0:00:02]} fxe5 {[%emt 0:00:56]} 19. fxe5 {[%emt 0:05:03]} Qxa2 {[%emt 0:09:56]} 20. Bg3 {[%emt 0:08:29]} Rf8 {[%emt 0:04:15]} 21. Rxf8+ {[%emt 0:07:31]} Rxf8 {[%emt 0:01:45]} 22. Bd1 {[%emt 0:00:55]} Qa5 {[%emt 0:04:29]} 23. h4 {[%emt 0:05:53]} Qd8 {[%emt 0:08:50]} 24. g5 {[%emt 0:06:49]} Nge7 {[%emt 0:03:30]} 25. Bg4 {[%emt 0:03:34]} Nf5 {[%emt 0:01:42]} 26. Qe1 {[%emt 0:01:21]} Nce7 {[%emt 0:05:40]} 27. Bf2 {[%emt 0:04:32]} Ng6 {[%emt 0:03:53]} 28. b4 {[%emt 0:05:38]} Nf4 {[%emt 0:02:37]} 29. Bxf5 {[%emt 0:15:34]} Rxf5 $11 {[%emt 0:00:06]} 30. Qe3 {[%emt 0:00:22]} Qf8 {[%emt 0:01:21]} 31. Rb2 {[%emt 0:03:07]} Ne6 {[%emt 0:03:32]} 32. Qh3 {[%emt 0:02:49]} Qf7 {[%emt 0:01:23]} 33. Qg2 {[%emt 0:00:56]} Nf4 {[%emt 0:00:22]} 34. Qh2 {[%emt 0:01:04]} Qh5 {[%emt 0:01:18]} 35. Qh1 {[%emt 0:01:47]} Qg4+ {[%emt 0:01:07]} 36. Kh2 {[%emt 0:01:32]} Qh3+ {[%emt 0:01:42]} 37. Kg1 {[%emt 0:00:00]} Qxh1+ {[%emt 0:00:21]} 38. Kxh1 {[%emt 0:00:01]} Nd3 {[%emt 0:00:06]} 39. Re2 {[%emt 0:00:30]} Nxf2+ {[%emt 0:00:12]} 40. Kg2 {[%emt 0:00:05]} Ne4 {[%emt 0:00:24]} 41. Ra2 {[%emt 0:00:40]} a6 {[%emt 0:00:41]} 42. Rc2 {[%emt 0:00:28]} Kf7 {[%emt 0:00:30]} 0-1

[Event "ENG-ch Women 2019"]
[Site "Hull"]
[Date "2019.08.31"]
[Round "2.3"]
[White "Head, Louise"]
[Black "Gamal, Alaa"]
[Result "1-0"]
[ECO "A57"]
[WhiteElo "2092"]
[BlackElo "1762"]
[Annotator "NA"]
[PlyCount "79"]
[EventDate "2019.08.30"]
[EventType "swiss"]
[EventCountry "ENG"]
[SourceTitle "playchess.com"]
[Source "ChessBase"]
[SourceQuality "1"]
[TimeControl "5400+30"]

1. d4 {[%emt 0:00:00]} Nf6 {[%emt 0:00:00]} 2. c4 {[%emt 0:00:00]} c5 {[%emt 0:00:16]} 3. d5 {[%emt 0:00:00]} b5 {[%emt 0:00:14]} 4. cxb5 {[%emt 0:00:00]} a6 {[%emt 0:00:05]} 5. b6 {[%emt 0:00:05]} d6 {[%emt 0:00:16]} 6. Nc3 {[%emt 0:00:08]} Nbd7 {[%emt 0:00:58]} 7. e4 {[%emt 0:00:59]} g6 {[%emt 0:00:21]} 8. Nf3 {[%emt 0:00:27]} Bg7 {[%emt 0:00:16]} 9. Be2 {[%emt 0:01:09]} O-O {[%emt 0:00:19]} 10. O-O {[%emt 0:00:29]} Nxb6 {[%emt 0:00:12]} 11. a4 {[%emt 0:00:58]} a5 {[%emt 0:00:46]} 12. Nd2 {[%emt 0:02:31]} Ba6 {[%emt 0:02:00]} 13. Bxa6 {[%emt 0:05:13]} Rxa6 {[%emt 0:00:19] A57: Benko/Volga Gambit} 14. Qe2 {[%emt 0:01:29]} Qa8 {[%emt 0:28:23]} (14... Ra8 15. Rd1 Qd7 16. Nc4 Nxc4 17. Qxc4 Rfb8 18. e5 Rb4 19. Qe2 dxe5 20. Be3 Rc8 21. Qa6 {0-1 (55) Yang,D (2417)-Wang,P (2468) Richardson 2010}) 15. Ra2 $146 {[%emt 0:13:54]} ({Predecessor:} 15. Nb5 Rc8 16. Ra2 Qb7 17. b3 Na8 18. Bb2 Nc7 19. f4 Raa8 20. Bxf6 Bxf6 21. e5 {0-1 (47) Polyakov,F (2143)-Tokranovs,D (2337) Riga 2018}) 15... Ne8 {[%emt 0:04:05]} 16. Nc4 {[%emt 0:08:51]} Nc7 {[%emt 0:07:55]} 17. Nb5 {[%emt 0:18:28]} Rc8 {[%emt 0:01:07]} 18. b3 {[%emt 0:01:00]} Qb7 {[%emt 0:06:24]} 19. Bd2 {[%emt 0:05:29]} Nxc4 {[%emt 0:22:36]} 20. bxc4 {[%emt 0:00:12]} ({Of course not} 20. Qxc4 $6 Rca8 $11) 20... Na8 {[%emt 0:01:38]} 21. Rb1 {[%emt 0:04:25]} Rb8 {[%emt 0:04:44]} 22. Qd3 {[%emt 0:01:50]} Qd7 {[%emt 0:02:59]} 23. Ra3 {[%emt 0:03:51]} Nb6 $16 {[%emt 0:01:56]} 24. Bc3 {[%emt 0:13:52]} Bxc3 {[%emt 0:01:12]} 25. Nxc3 {[%emt 0:00:50]} Qd8 {[%emt 0:01:15]} 26. Rb5 {[%emt 0:02:11]} Nd7 {[%emt 0:01:34]} 27. f4 {[%emt 0:00:31]} Rab6 {[%emt 0:02:26]} 28. Nb1 {[%emt 0:03:07]} R8b7 {[%emt 0:01:32]} 29. Qc3 {[%emt 0:00:23]} Ra7 {[%emt 0:01:36]} 30. Nd2 {[%emt 0:00:30]} Rxb5 {[%emt 0:02:25]} 31. axb5 {[%emt 0:00:36]} a4 {[%emt 0:00:34]} 32. Nb3 {[%emt 0:01:25]} Qb6 {[%emt 0:00:39]} 33. Qa1 {[%emt 0:00:31]} axb3 {[%emt 0:03:45]} 34. Rxa7 {[%emt 0:00:11]} b2 {[%emt 0:00:03]} 35. Ra8+ {[%emt 0:00:11]} Nb8 {[%emt 0:00:46]} 36. Qxb2 {[%emt 0:00:06]} Qb7 {[%emt 0:00:02]} 37. Qa1 {[%emt 0:00:12]} f6 {[%emt 0:01:48]} 38. Qa7 {[%emt 0:00:23]} Qxa7 {[%emt 0:00:22]} 39. Rxa7 {[%emt 0:00:04]} Kf7 {[%emt 0:00:05]} 40. Rb7 {[%emt 0:00:04]} 1-0